fUST/lending_fUST_20240517
["ID","MTS","AMOUNT","RATE_DAILY","PERIOD"]
[327254759,1715934361352,236.19327012,9.999e-05,2]
[327254760,1715934372263,16139.66154075,9.999e-05,2]
[327254761,1715934391652,19241.62944046,9.999e-05,2]
[327254762,1715934404295,4831.38929771,9.999e-05,2]
[327254763,1715934411571,19241.62944046,9.999e-05,2]
[327254764,1715934429573,19241.62944046,9.999e-05,2]
[327254765,1715934431156,-592.743882,0.00015624,2]
[327254766,1715934431178,-1387.1,0.00015804,2]
[327254767,1715934431198,-292.3163178,0.00016436,2]
[327254768,1715934431217,-393.14341669,0.00016436,2]
[327254769,1715934449583,19241.62944046,9.999e-05,2]
[327254770,1715934465624,10296.36250527,9.999e-05,2]
[327254771,1715934490624,529.13,0.00010959,2]
[327254772,1715934544066,155.25323759,0.00010959,2]
[327254773,1715934558300,16134.46583369,0.00010959,2]
[327254774,1715934574506,281.31656163,0.00010959,2]
[327254775,1715934587306,150.20144968,0.000265,120]
[327254776,1715934592473,344.26375053,0.00010959,2]
[327254777,1715934614509,200.43,0.00010959,2]
[327254778,1715934615597,1852.45274529,0.00010959,2]
[327254779,1715934615624,50.07829006,0.00010959,2]
[327254813,1715934634513,-296.371941,0.0001585,2]
[327254814,1715934634525,-18.68059507,0.00016436,2]
[327254815,1715934634534,-138.69517127,0.00016436,2]
[327254816,1715934634687,-388.62856802,0.00016436,2]
[327254817,1715934634697,-340.0363445,0.00016436,2]
[327254818,1715934634706,-412.9630023,0.00016436,2]
[327254819,1715934634715,-209.47723402,0.00016436,2]
[327254854,1715934638916,-29.41880969,0.00016436,2]
[327254855,1715934638926,-206.96693214,0.00016436,2]
[327254856,1715934638935,-1000.0,0.00016436,2]
[327254857,1715934638947,-194.1642929,0.00016437,2]
[327254858,1715934638956,-2260.83401656,0.0001676,2]
[327254859,1715934638965,-150.0,0.0001685,2]
[327254860,1715934638974,-416.98047207,0.00016922,2]
[327254861,1715934638983,-154.94365812,0.00016976,2]
[327254862,1715934638993,-236.41159802,0.00016976,2]
[327254863,1715934639003,-2785.94337812,0.00016976,2]
[327254864,1715934639012,-164.01982334,0.00016976,2]
[327254865,1715934639022,-708.68781589,0.00016976,2]
[327254866,1715934639032,-509.62764446,0.00016976,2]
[327254867,1715934639042,-155.22726935,0.00016976,2]
[327254868,1715934639052,-184.05568912,0.00016977,2]
[327254869,1715934639062,-500.0,0.00016978,2]
[327254870,1715934639072,-500.0,0.00016978,2]
[327254871,1715934639082,-500.0,0.00016978,2]
[327254872,1715934639092,-500.0,0.00016978,2]
[327254873,1715934639101,-500.0,0.00016978,2]
[327254874,1715934639111,-1088.81,0.00016978,2]
[327254875,1715934639121,-500.0,0.00016978,2]
[327254876,1715934639130,-522.20632925,0.00016983,2]
[327254877,1715934639140,-255.49964725,0.00016984,2]
[327254878,1715934639149,-206.64339249,0.00016984,2]
[327254879,1715934639159,-154.82968764,0.00016984,2]
[327254880,1715934639169,-155.00461033,0.00016985,2]
[327254881,1715934639178,-500.0,0.00016985,2]
[327254882,1715934639190,-500.0,0.00016985,2]
[327254883,1715934639200,-1241.56,0.00016985,2]
[327254884,1715934639209,-500.0,0.00016985,2]
[327254885,1715934639219,-586.56,0.00016985,2]
[327254886,1715934639229,-500.0,0.00016985,2]
[327254887,1715934639239,-500.0,0.00016985,2]
[327254888,1715934639250,-500.0,0.00016985,2]
[327254889,1715934639260,-500.0,0.00016985,2]
[327254890,1715934639271,-500.0,0.00016985,2]
[327254891,1715934639281,-500.0,0.00016985,2]
[327254892,1715934639290,-3910.03465519,0.00016985,2]
[327254893,1715934639308,-1623.21534481,0.00016985,2]
[327254894,1715934639318,-500.0,0.00016985,2]
[327254895,1715934639327,-150.0,0.00017062,2]
[327254896,1715934639337,-500.0,0.00017068,2]
[327254897,1715934639347,-1245.26,0.00017068,2]
[327254898,1715934639357,-500.0,0.00017068,2]
[327254899,1715934639367,-500.0,0.00017068,2]
[327254900,1715934639377,-668.55,0.00017069,2]
[327254901,1715934639387,-620.0,0.00017104,2]
[327254902,1715934639398,-158.77643344,0.00017181,2]
[327254903,1715934639408,-438.766,0.00017205,2]
[327254904,1715934639419,-1932.26,0.00017249,2]
[327254905,1715934639428,-500.0,0.00017249,2]
[327254906,1715934639438,-500.0,0.00017249,2]
[327254907,1715934639449,-500.0,0.00017249,2]
[327254908,1715934639460,-500.11958888,0.0001725,2]
[327254909,1715934639470,-500.0,0.00017252,2]
[327254910,1715934639480,-500.0,0.00017252,2]
[327254911,1715934639491,-500.0,0.00017252,2]
[327254912,1715934639501,-500.0,0.00017252,2]
[327254913,1715934639511,-500.0,0.00017252,2]
[327254914,1715934639521,-1088.81,0.00017252,2]
[327254915,1715934639534,-500.0,0.00017252,2]
[327254916,1715934639545,-2114.19374467,0.00017258,2]
[327254917,1715934639555,-343.55105665,0.00017259,2]
[327254918,1715934639565,-500.0,0.00017259,2]
[327254919,1715934639575,-500.0,0.00017259,2]
[327254920,1715934639586,-1241.56,0.00017259,2]
[327254921,1715934639596,-500.0,0.00017259,2]
[327254922,1715934639606,-586.56,0.00017259,2]
[327254923,1715934639617,-500.0,0.00017259,2]
[327254924,1715934639627,-500.0,0.00017259,2]
[327254925,1715934639637,-500.0,0.00017259,2]
[327254926,1715934639647,-297.11010211,0.00017259,2]
[327254927,1715934639657,-500.0,0.00017259,2]
[327254928,1715934639667,-500.0,0.00017259,2]
[327254929,1715934639677,-5533.25,0.00017259,2]
[327254930,1715934639687,-500.0,0.00017259,2]
[327254931,1715934639699,-150.0,0.00017273,2]
[327254932,1715934639709,-500.0,0.00017342,2]
[327254933,1715934639719,-1245.26,0.00017342,2]
[327254934,1715934639728,-500.0,0.00017342,2]
[327254935,1715934639738,-180.85578303,0.00017342,2]
[327254936,1715934639748,-668.55,0.00017343,2]
[327254937,1715934639758,-183.56605713,0.00017358,2]
[327254938,1715934639768,-150.0,0.00017485,2]
[327254939,1715934639779,-1932.26,0.00017523,2]
[327254940,1715934639788,-500.0,0.00017523,2]
[327254941,1715934639799,-500.0,0.00017523,2]
[327254942,1715934639809,-500.0,0.00017523,2]
[327254943,1715934639819,-500.0,0.00017526,2]
[327254944,1715934639828,-500.0,0.00017526,2]
[327254945,1715934639839,-500.0,0.00017526,2]
[327254946,1715934639848,-457.41396978,0.00017526,2]
[327254947,1715934639859,-500.0,0.00017526,2]
[327254948,1715934639869,-689.5119195,0.00017526,2]
[327254959,1715934642342,-399.2980805,0.00017526,2]
[327254960,1715934642351,-500.0,0.00017526,2]
[327254961,1715934642361,-435.18359269,0.00017533,2]
[327254962,1715934642371,-500.0,0.00017533,2]
[327254963,1715934642380,-1241.56,0.00017533,2]
[327254964,1715934642390,-500.0,0.00017533,2]
[327254965,1715934642399,-586.56,0.00017533,2]
[327254966,1715934642408,-500.0,0.00017533,2]
[327254967,1715934642418,-500.0,0.00017533,2]
[327254968,1715934642427,-500.0,0.00017533,2]
[327254969,1715934642436,-500.0,0.00017533,2]
[327254970,1715934642452,-500.0,0.00017533,2]
[327254971,1715934642461,-5533.25,0.00017533,2]
[327254972,1715934642471,-500.0,0.00017533,2]
[327254973,1715934642480,-500.0,0.00017616,2]
[327254974,1715934642491,-1245.26,0.00017616,2]
[327254975,1715934642500,-500.0,0.00017616,2]
[327254976,1715934642509,-668.55,0.00017617,2]
[327254977,1715934642519,-150.0,0.00017697,2]
[327254978,1715934642528,-1932.26,0.00017797,2]
[327254979,1715934642538,-500.0,0.00017797,2]
[327254980,1715934642547,-500.0,0.00017797,2]
[327254981,1715934642556,-500.0,0.00017797,2]
[327254982,1715934642566,-500.0,0.000178,2]
[327254983,1715934642575,-338.13164902,0.000178,2]
[327254984,1715934642583,-500.0,0.000178,2]
[327254985,1715934642592,-500.0,0.000178,2]
[327254986,1715934642603,-1088.81,0.000178,2]
[327254987,1715934642612,-500.0,0.000178,2]
[327254988,1715934642622,-1723.42499989,0.00017804,2]
[327254989,1715934642632,-1109.94734929,0.00017804,2]
[327254990,1715934642641,-1094.64720294,0.00017805,2]
[327254991,1715934642650,-909.36767764,0.00017805,2]
[327254992,1715934642660,-336.10946714,0.00017805,2]
[327254993,1715934642669,-154.81422293,0.00017806,2]
[327254994,1715934642679,-1042.78198065,0.00017806,2]
[327254995,1715934642689,-2677.97514069,0.00017806,2]
[327254996,1715934642701,-181.94044451,0.00017806,2]
[327254997,1715934642710,-817.80441059,0.00017806,2]
[327254998,1715934642719,-155.03875412,0.00017806,2]
[327254999,1715934642729,-151.0,0.00017806,2]
[327255000,1715934642739,-261.071768,0.00017806,2]
[327255001,1715934642749,-1495.91634512,0.00017807,2]
[327255002,1715934642758,-155.149692,0.00017807,2]
[327255003,1715934642768,-151.0,0.00017807,2]
[327255004,1715934642778,-151.0,0.00017807,2]
[327255005,1715934642787,-221.365096,0.00017807,2]
[327255006,1715934642796,-500.0,0.00017807,2]
[327255007,1715934642805,-1241.56,0.00017807,2]
[327255008,1715934642815,-500.0,0.00017807,2]
[327255009,1715934642825,-586.56,0.00017807,2]
[327255010,1715934642834,-500.0,0.00017807,2]
[327255011,1715934642844,-500.0,0.00017807,2]
[327255012,1715934642854,-500.0,0.00017807,2]
[327255013,1715934642864,-470.46977504,0.00017807,2]
[327255014,1715934642874,-500.0,0.00017807,2]
[327255015,1715934642884,-5533.25,0.00017807,2]
[327255016,1715934642894,-500.0,0.00017807,2]
[327255017,1715934642903,-151.0,0.00017808,2]
[327255018,1715934642913,-152.055973,0.00017808,2]
[327255019,1715934642922,-151.0,0.00017808,2]
[327255020,1715934642932,-152.002366,0.00017808,2]
[327255021,1715934642944,-151.0,0.00017808,2]
[327255022,1715934642953,-283.885906,0.00017808,2]
[327255023,1715934642962,-151.0,0.00017808,2]
[327255024,1715934642972,-3000.0,0.00017808,2]
[327255025,1715934642981,-3000.0,0.00017808,2]
[327255026,1715934642990,-1600.99681665,0.00017808,2]
[327255027,1715934643003,-1399.00318335,0.00017808,2]
[327255028,1715934643013,-2797.10321342,0.00017808,2]
[327255029,1715934643022,-151.0,0.00017808,2]
[327255030,1715934643032,-151.0,0.00017808,2]
[327255031,1715934643041,-151.0,0.00017808,2]
[327255032,1715934643051,-240.120884,0.00017808,2]
[327255033,1715934643061,-151.0,0.00017808,2]
[327255034,1715934643070,-151.0,0.00017808,2]
[327255035,1715934643080,-151.0,0.00017808,2]
[327255036,1715934643090,-151.0,0.00017808,2]
[327255037,1715934643100,-447.524779,0.00017808,2]
[327255039,1715934643110,-447.524779,0.00017808,2]
[327255040,1715934643119,-850.562716,0.00017808,2]
[327255042,1715934643128,-850.562716,0.00017808,2]
[327255043,1715934643138,-151.0,0.00017808,2]
[327255044,1715934643148,-151.0,0.00017808,2]
[327255045,1715934643158,-376.461438,0.00017808,2]
[327255046,1715934643168,-151.645127,0.00017808,2]
[327255047,1715934643177,-376.461438,0.00017808,2]
[327255048,1715934643187,-360.912542,0.00017808,2]
[327255049,1715934643198,-360.912542,0.00017808,2]
[327255050,1715934643208,-151.0,0.00017808,2]
[327255051,1715934643218,-151.0,0.00017808,2]
[327255052,1715934643229,-630.722642,0.00017808,2]
[327255053,1715934643238,-630.722642,0.00017808,2]
[327255054,1715934643248,-202.537225,0.00017808,2]
[327255055,1715934643257,-202.537225,0.00017808,2]
[327255056,1715934643267,-151.0,0.00017808,2]
[327255057,1715934643277,-151.0,0.00017808,2]
[327255058,1715934643286,-151.0,0.00017808,2]
[327255059,1715934643296,-251.956086,0.00017808,2]
[327255060,1715934643306,-151.0,0.00017808,2]
[327255061,1715934643315,-497.431148,0.00017808,2]
[327255062,1715934643325,-497.431148,0.00017808,2]
[327255063,1715934643335,-500.0,0.0001789,2]
[327255064,1715934643345,-1245.26,0.0001789,2]
[327255065,1715934643354,-500.0,0.0001789,2]
[327255066,1715934643363,-668.55,0.00017891,2]
[327255067,1715934643373,-10448.86120355,0.00017898,2]
[327255068,1715934643382,-151.0,0.00017898,2]
[327255069,1715934643392,-151.0,0.00017898,2]
[327255070,1715934643401,-151.0,0.00017898,2]
[327255071,1715934643411,-151.0,0.00017898,2]
[327255072,1715934643420,-151.0,0.00017898,2]
[327255073,1715934643430,-151.0,0.00017898,2]
[327255074,1715934643439,-159.343491,0.00017898,2]
[327255076,1715934643453,-151.0,0.00017898,2]
[327255078,1715934643462,-151.0,0.00017898,2]
[327255079,1715934643472,-447.524779,0.00017898,2]
[327255080,1715934643481,-447.524779,0.00017898,2]
[327255081,1715934643492,-850.562716,0.00017898,2]
[327255082,1715934643501,-151.0,0.00017898,2]
[327255083,1715934643511,-850.562716,0.00017898,2]
[327255084,1715934643521,-151.0,0.00017898,2]
[327255085,1715934643533,-376.461438,0.00017898,2]
[327255087,1715934643543,-376.461438,0.00017898,2]
[327255088,1715934643552,-360.912542,0.00017898,2]
[327255090,1715934643562,-360.912542,0.00017898,2]
[327255092,1715934643571,-151.0,0.00017898,2]
[327255094,1715934643581,-151.0,0.00017898,2]
[327255097,1715934643590,-630.722642,0.00017898,2]
[327255100,1715934643600,-630.722642,0.00017898,2]
[327255103,1715934643609,-202.537225,0.00017898,2]
[327255105,1715934643619,-202.537225,0.00017898,2]
[327255107,1715934643628,-151.0,0.00017898,2]
[327255109,1715934643637,-151.0,0.00017898,2]
[327255111,1715934643646,-151.0,0.00017898,2]
[327255113,1715934643656,-151.0,0.00017898,2]
[327255115,1715934643665,-497.431148,0.00017898,2]
[327255117,1715934643675,-497.431148,0.00017898,2]
[327255119,1715934643684,-331.7201,0.00017898,2]
[327255121,1715934643694,-331.7201,0.00017898,2]
[327255123,1715934643703,-247.963608,0.00017898,2]
[327255124,1715934643712,-1104.90153803,0.000179,2]
[327255126,1715934643721,-150.0,0.00017908,2]
[327255128,1715934643730,-620.0,0.00017959,2]
[327255130,1715934643739,-895.80593484,0.00018,2]
[327255132,1715934643748,-189.86799103,0.00018,2]
[327255134,1715934643758,-350.0000004,0.00018,2]
[327255136,1715934643767,-1932.26,0.00018071,2]
[327255137,1715934643776,-478.09934111,0.00018071,2]
[327255138,1715934643785,-500.0,0.00018071,2]
[327255140,1715934643794,-500.0,0.00018071,2]
[327255142,1715934643803,-500.0,0.00018074,2]
[327255144,1715934643813,-151.0,0.00018074,2]
[327255146,1715934643823,-151.0,0.00018074,2]
[327255148,1715934643832,-500.0,0.00018074,2]
[327255150,1715934643842,-500.0,0.00018074,2]
[327255152,1715934643850,-1088.81,0.00018074,2]
[327255154,1715934643859,-500.0,0.00018074,2]
[327255156,1715934643869,-151.0,0.00018075,2]
[327255158,1715934643878,-151.0,0.00018075,2]
[327255160,1715934643887,-151.0,0.00018075,2]
[327255162,1715934643896,-151.0,0.00018075,2]
[327255164,1715934643906,-447.524779,0.00018075,2]
[327255166,1715934643915,-447.524779,0.00018075,2]
[327255168,1715934643924,-850.562716,0.00018075,2]
[327255170,1715934643932,-151.0,0.00018075,2]
[327255171,1715934643944,-850.562716,0.00018075,2]
[327255173,1715934643954,-151.0,0.00018075,2]
[327255175,1715934643963,-169.515771,0.00018075,2]
[327255177,1715934643972,-630.722642,0.00018075,2]
[327255179,1715934643982,-630.722642,0.00018075,2]
[327255181,1715934643991,-202.537225,0.00018075,2]
[327255183,1715934644000,-202.537225,0.00018075,2]
[327255185,1715934644010,-151.0,0.00018075,2]
[327255187,1715934644019,-500.0,0.00018081,2]
[327255189,1715934644028,-1241.56,0.00018081,2]
[327255191,1715934644037,-500.0,0.00018081,2]
[327255193,1715934644047,-586.56,0.00018081,2]
[327255195,1715934644056,-500.0,0.00018081,2]
[327255197,1715934644065,-500.0,0.00018081,2]
[327255199,1715934644075,-500.0,0.00018081,2]
[327255201,1715934644087,-151.0,0.00018081,2]
[327255203,1715934644096,-278.696478,0.00018081,2]
[327255205,1715934644106,-500.0,0.00018081,2]
[327255207,1715934644116,-5533.25,0.00018081,2]
[327255209,1715934644125,-151.0,0.00018081,2]
[327255211,1715934644134,-497.431148,0.00018081,2]
[327255213,1715934644143,-497.431148,0.00018081,2]
[327255215,1715934644152,-331.7201,0.00018081,2]
[327255217,1715934644162,-331.7201,0.00018081,2]
[327255219,1715934644172,-500.0,0.00018081,2]
[327255221,1715934644181,-247.963608,0.00018081,2]
[327255223,1715934644191,-151.0,0.00018082,2]
[327255225,1715934644201,-151.0,0.00018082,2]
[327255227,1715934644211,-151.0,0.00018082,2]
[327255229,1715934644220,-376.461438,0.00018082,2]
[327255231,1715934644230,-376.461438,0.00018082,2]
[327255233,1715934644239,-360.912542,0.00018082,2]
[327255235,1715934644248,-360.912542,0.00018082,2]
[327255237,1715934644257,-150.0,0.0001812,2]
[327255239,1715934644267,-151.0,0.00018124,2]
[327255241,1715934644276,-248.044171,0.00018124,2]
[327255243,1715934644285,-500.0,0.00018164,2]
[327255245,1715934644295,-1245.26,0.00018164,2]
[327255247,1715934644304,-500.0,0.00018164,2]
[327255249,1715934644313,-668.55,0.00018165,2]
[327255251,1715934644323,-512.62567878,0.00018256,2]
[327255253,1715934644332,-1932.26,0.00018345,2]
[327255255,1715934644341,-208.31573036,0.00018345,2]
[327255257,1715934644350,-500.0,0.00018345,2]
[327255259,1715934644359,-11195.48192507,0.00018348,3]
[327255261,1715934644368,-500.0,0.00018348,2]
[327255263,1715934644377,-151.0,0.00018348,2]
[327255265,1715934644387,-151.0,0.00018348,2]
[327255267,1715934644396,-151.0,0.00018348,2]
[327255269,1715934644405,-244.126605,0.00018348,2]
[327255271,1715934644415,-447.524779,0.00018348,2]
[327255273,1715934644424,-447.524779,0.00018348,2]
[327255275,1715934644433,-850.562716,0.00018348,2]
[327255277,1715934644442,-151.0,0.00018348,2]
[327255279,1715934644456,-850.562716,0.00018348,2]
[327255281,1715934644465,-151.0,0.00018348,2]
[327255283,1715934644474,-500.0,0.00018348,2]
[327255285,1715934644484,-376.461438,0.00018348,2]
[327255287,1715934644495,-376.461438,0.00018348,2]
[327255289,1715934644504,-360.912542,0.00018348,2]
[327255291,1715934644514,-360.912542,0.00018348,2]
[327255293,1715934644523,-192.598474,0.00018348,2]
[327255295,1715934644535,-630.722642,0.00018348,2]
[327255297,1715934644545,-630.722642,0.00018348,2]
[327255299,1715934644554,-202.537225,0.00018348,2]
[327255301,1715934644564,-202.537225,0.00018348,2]
[327255303,1715934644573,-151.0,0.00018348,2]
[327255304,1715934644582,-151.0,0.00018348,2]
[327255306,1715934644592,-500.0,0.00018348,2]
[327255309,1715934644602,-1088.81,0.00018348,2]
[327255311,1715934644612,-480.25444195,0.00018348,2]
[327255313,1715934644621,-151.0,0.00018348,2]
[327255314,1715934644631,-300.40415354,0.00018348,2]
[327255321,1715934644742,273.37336231,9.9e-05,2]
[327255322,1715934644757,-197.02699446,0.00018348,2]
[327255323,1715934644767,-497.431148,0.00018348,2]
[327255324,1715934644776,-331.7201,0.00018348,2]
[327255325,1715934644785,-331.7201,0.00018348,2]
[327255326,1715934644794,-247.963608,0.00018348,2]
[327255327,1715934644803,-500.0,0.00018355,2]
[327255328,1715934644812,-836.45941576,0.00018355,2]
[327255329,1715934645969,767.36,0.00010959,2]
[327255359,1715934646806,-319.89104539,0.00017159,2]
[327255360,1715934646815,-247.963608,0.00017898,2]
[327255361,1715934646824,-12.0262716,0.00018081,2]
[327255362,1715934652341,273.37336231,9.9e-05,2]
[327255363,1715934654231,154.70605849,0.00010959,2]
[327255364,1715934654293,1631.58928749,0.00010959,2]
[327255365,1715934659616,369.12710253,0.00010959,2]
[327255366,1715934661071,273.37336231,9.9e-05,2]
[327255367,1715934661429,2180.61323215,0.00013764,2]
[327255368,1715934665374,809.37724193,0.00010959,2]
[327255369,1715934670600,154.70605849,0.00010959,2]
[327255370,1715934681294,449.6540233,0.00010959,2]
[327255371,1715934683540,1136.09949395,0.00013763,2]
[327255372,1715934692195,184.61820511,0.00010959,2]
[327255373,1715934701291,449.6540233,0.00010959,2]
[327255374,1715934709784,7893.2342889,9.999e-05,2]
[327255375,1715934711940,1136.09949395,0.00013763,2]
[327255376,1715934713838,285.67406178,0.00015,2]
[327255377,1715934725309,234.26974614,0.00010959,2]
[327255378,1715934725936,1136.09949395,0.00013763,2]
[327255379,1715934731753,264.91307403,0.00015,2]
[327255380,1715934741958,1136.09949395,0.00013422,2]
[327255381,1715934745393,234.26974614,0.00010959,2]
[327255382,1715934757956,1136.09949395,0.00013422,2]
[327255383,1715934761306,234.26974614,0.00015,2]
[327255384,1715934777926,1136.09949395,0.00013422,2]
[327255385,1715934779310,234.26974614,0.00015,2]
[327255386,1715934792460,88.42358631,0.00013422,2]
[327255387,1715934792488,1047.67590764,0.00013422,2]
[327255388,1715934795307,234.26974614,0.00015,2]
[327255389,1715934812483,1136.09949395,0.00012746,2]
[327255390,1715934813307,234.26974614,0.00015,2]
[327255391,1715934830466,1136.09949395,0.00012746,2]
[327255392,1715934831462,234.26974614,0.00015,2]
[327255393,1715934852961,1106.43946921,0.00012746,2]
[327255394,1715934855308,234.26974614,0.00015,2]
[327255395,1715934871335,234.26974614,0.00015,2]
[327255396,1715934893318,294.19147988,0.00015,2]
[327255399,1715935006229,619.602264,0.00014937,2]
[327255403,1715935077816,1094.84700582,9.999e-05,2]
[327255404,1715935084596,154.70605849,9.999e-05,2]
[327255411,1715935114626,154.70605849,9.999e-05,2]
[327255412,1715935115343,1148.90229176,0.00015,2]
[327255413,1715935118055,155.16499154,0.00014937,2]
[327255415,1715935125706,129.36725457,0.00014937,2]
[327255416,1715935125734,236.4070906,0.00014937,2]
[327255419,1715935127487,155.14519181,0.00014937,2]
[327255421,1715935138061,229.62163122,0.00014937,2]
[327255424,1715935143462,155.41161437,0.00014937,2]
[327255425,1715935157591,366.99970263,0.00014937,2]
[327255427,1715935162822,521.21402222,9.999e-05,2]
[327255428,1715935163447,306.3083692,0.00014958,2]
[327255430,1715935198418,16134.46583369,0.00014958,2]
[327255432,1715935199818,285.41103408,0.00015,2]
[327255433,1715935215820,285.41103408,0.00015,2]
[327255434,1715935218420,16134.46583369,0.00014958,2]
[327255436,1715935238447,9897.6424183,0.00014958,2]
[327255437,1715935293829,285.67406178,0.00015,2]
[327255438,1715935309887,285.67406178,0.00015,2]
[327255439,1715935327848,285.67406178,0.00015,2]
[327255440,1715935341835,285.67406178,0.00015,2]
[327255441,1715935363853,408.0249125,0.00015,2]
[327255442,1715935403404,7893.2342889,9.999e-05,2]
[327255443,1715935429101,480.2207562,0.00014833,2]
[327255444,1715935490934,-1885.19395395,0.00015813,2]
[327255445,1715935490958,-745.33604605,0.00015814,2]
[327255446,1715935543141,4241.58,0.000265,120]
[327255447,1715935560565,154.70605849,9.999e-05,2]
[327255448,1715935572688,1148.90229176,0.00015,2]
[327255450,1715935592356,521.21402222,9.999e-05,2]
[327255451,1715935650508,309.801132,0.00014097,2]
[327255452,1715935687280,154.70605849,9.999e-05,2]
[327255453,1715935786807,154.70605849,9.999e-05,2]
[327255454,1715935828213,238.72491025,9.999e-05,2]
[327255497,1715935832025,-7893.2342889,0.00015081,2]
[327255499,1715935832034,-2465.30895012,0.00015082,2]
[327255501,1715935832043,-9397.51147343,0.00015083,2]
[327255503,1715935832053,-2595.37774588,0.00015085,2]
[327255505,1715935832062,-1198.35556286,0.00015085,2]
[327255507,1715935832071,-154.84515485,0.00015085,2]
[327255508,1715935832080,-395.12068195,0.00015085,2]
[327255510,1715935832091,-227.52796843,0.00015085,2]
[327255511,1715935832100,-528.76307526,0.00015086,2]
[327255513,1715935832109,-235.71459205,0.00015089,2]
[327255515,1715935832118,-1338.26302922,0.00015089,2]
[327255517,1715935832128,-521.21402222,0.0001509,2]
[327255518,1715935832137,-521.21402222,0.0001509,2]
[327255520,1715935832147,-379.19063668,0.00015094,2]
[327255522,1715935832157,-154.92237436,0.00015097,2]
[327255524,1715935832167,-895.10432662,0.00015097,2]
[327255525,1715935832176,-595.3962905,0.00015098,2]
[327255527,1715935832188,-24900.0,0.00015101,2]
[327255529,1715935832197,-196.71349201,0.00015656,2]
[327255530,1715935832206,-3381.86795074,0.00015814,2]
[327255531,1715935832215,-155.01370357,0.00015836,2]
[327255532,1715935832224,-1094.44740006,0.00015836,2]
[327255533,1715935832234,-457.91539386,0.00015837,2]
[327255534,1715935832243,-154.93785178,0.00015837,2]
[327255535,1715935832254,-659.25680292,0.0001584,2]
[327255536,1715935832264,-929.11856052,0.0001584,2]
[327255537,1715935832273,-290.62791513,0.00015841,2]
[327255538,1715935832282,-1496.16357216,0.00015841,2]
[327255539,1715935832292,-171.74536823,0.00016338,2]
[327255540,1715935832301,-500.0,0.00016438,2]
[327255541,1715935832311,-500.0,0.00016438,2]
[327255542,1715935832321,-500.0,0.00016438,2]
[327255543,1715935832330,-948.05,0.00016438,2]
[327255544,1715935832341,-500.0,0.00016438,2]
[327255545,1715935832350,-124.59146988,0.00016438,2]
[327255600,1715935838370,-375.40853012,0.00016438,2]
[327255601,1715935838380,-63.79159394,0.00016438,2]
[327255602,1715935838392,-436.20840606,0.00016438,2]
[327255603,1715935838402,-500.0,0.00016438,2]
[327255604,1715935838411,-216.91361022,0.00016438,2]
[327255605,1715935838423,-283.08638978,0.00016438,2]
[327255606,1715935838432,-500.0,0.00016438,2]
[327255607,1715935838442,-985.83,0.00016438,2]
[327255608,1715935838452,-1529.71,0.00016438,2]
[327255609,1715935838461,-312.9902048,0.00016438,2]
[327255610,1715935838470,-500.0,0.00016438,2]
[327255612,1715935838480,-816.61,0.00016438,2]
[327255614,1715935838489,-99.85502967,0.00016438,2]
[327255622,1715935840327,-347.56510345,0.00016438,2]
[327255691,1715935846082,-266.32916214,0.00016437,2]
[327255692,1715935846091,-2232.87731376,0.00016438,2]
[327255699,1715935970053,2114.19374467,9.999e-05,2]
[327255714,1715937009978,1893.7347,0.00023,30]
[327255768,1715937033333,-24900.0,0.00015061,2]
[327255769,1715937033343,-164.02781083,0.00015388,2]